bitfinex/quotes_SOLUSD_20260304
["timestamp","ask_amount","ask_price","bid_price","bid_amount"]
[1772610303093,1.83848957,86.71,86.691,1.88504489]
[1772610303388,46.09715335,86.774,86.691,1.88504489]
[1772610303389,1.83848957,86.72,86.691,1.88504489]
[1772610303594,1.83848957,86.72,86.693,1.88504489]
[1772610303789,40.34489117,86.752,86.694,1.88504489]
[1772610303992,1.86807764,86.739,86.711,1.88504489]
[1772610304497,1.86807764,86.729,86.693,1.88504489]
[1772610304694,1.86807764,86.729,86.692,11.53508974]
[1772610304695,1.83848957,86.73,86.701,1.88504489]
[1772610305197,1.86807764,86.736,86.701,1.88504489]
[1772610305382,1.83848957,86.73,86.701,1.88504489]
[1772610305575,13.39824632,86.729,86.702,1.88504489]
[1772610305781,1.86807764,86.728,86.697,1.88504489]
[1772610306198,1.83848957,86.71,86.683,13.42121295]
[1772610306492,1.83848957,86.71,86.684,1.88504489]
[1772610306997,3.70656721,86.71,86.684,1.88504489]
[1772610307593,1.86807764,86.708,86.684,1.88504489]
[1772610307791,1.86807764,86.708,86.677,11.53702498]
[1772610308003,1.83848957,86.69,86.669,1.88504489]
[1772610308393,1.86807764,86.699,86.669,1.88504489]
[1772610308394,1.86807764,86.706,86.669,1.88504489]
[1772610308705,1.83848957,86.7,86.671,1.88504489]
[1772610308925,1.86807764,86.679,86.652,1.88504489]
[1772610309082,1.86807764,86.679,86.646,11.54114109]
[1772610309083,1.86807764,86.669,86.642,1.88504489]
[1772610309405,1.86807764,86.669,86.626,28.85955895]
[1772610309406,1.86807764,86.669,86.637,1.88504489]
[1772610309796,1.83848957,86.66,86.637,1.88504489]
[1772610310589,1.86807764,86.663,86.638,11.54227936]
[1772610310793,1.86807764,86.663,86.613,57.72743981]
[1772610310794,1.83848957,86.65,86.621,1.88504489]
[1772610310994,1.86807764,86.649,86.621,1.88504489]
[1772610311295,3.70656721,86.64,86.614,1.88504489]
[1772610311495,1.86807764,86.639,86.614,1.88504489]
[1772610311702,1.83848957,86.64,86.616,1.88504489]
[1772610312205,1.83848957,86.64,86.601,13.55759901]
[1772610312206,1.86807764,86.629,86.602,11.54707743]
[1772610312405,1.86807764,86.629,86.601,13.55759901]
[1772610312800,1.86807764,86.619,86.601,13.55759901]
[1772610313105,1.83848957,86.64,86.611,1.88504489]
[1772610313405,1.83848957,86.63,86.611,1.88504489]
[1772610313602,1.83848957,86.63,86.602,11.54707743]
[1772610313603,1.83848957,86.63,86.603,1.88504489]
[1772610313793,11.54347851,86.629,86.603,1.88504489]
[1772610314909,1.86807764,86.628,86.601,13.55759901]
[1772610316214,13.41182266,86.627,86.601,13.55759901]
[1772610316402,1.86807764,86.626,86.601,13.55759901]
[1772610318315,1.89854986,86.646,86.603,1.95337492]
[1772610318524,40.39378165,86.647,86.602,1.95337492]
[1772610318695,1.89854986,86.639,86.602,1.95337492]
[1772610319222,1.89854986,86.629,86.602,1.95337492]
[1772610319516,1.89854986,86.609,86.579,1.95337492]
[1772610319697,1.89854986,86.609,86.581,1.95337492]
[1772610319902,1.89854986,86.621,86.581,1.95337492]
[1772610320210,13.44349432,86.618,86.591,1.95337492]
[1772610320412,1.95316773,86.617,86.591,1.95337492]
[1772610321110,1.95316773,86.609,86.581,1.95087968]
[1772610321411,1.95316773,86.609,86.575,1.95087968]
[1772610322295,11.54627748,86.608,86.575,1.95087968]
[1772610322496,1.83848957,86.6,86.575,1.95087968]
[1772610323113,1.83848957,86.6,86.574,11.55080502]
[1772610323114,1.83848957,86.6,86.577,1.95087968]
[1772610323428,1.95316773,86.607,86.577,1.95087968]
[1772610324402,13.49971184,86.606,86.577,1.95087968]
[1772610324803,1.83848957,86.61,86.577,1.95087968]
[1772610325407,11.54654411,86.606,86.579,1.95087968]
[1772610325719,1.83848957,86.61,86.58,3.78936925]
[1772610326122,1.83848957,86.61,86.58,1.95087968]
[1772610326514,11.54614416,86.609,86.58,1.95087968]
[1772610326824,11.54614416,86.609,86.581,1.95087968]
[1772610327809,0.16254958,86.608,86.581,1.95087968]
[1772610328828,11.54641079,86.607,86.581,1.95087968]
[1772610329726,1.83848957,86.6,86.581,1.95087968]
[1772610329903,0.16638262,86.606,86.581,1.95087968]
[1772610330402,11.54641079,86.607,86.581,1.95087968]
[1772610330830,11.54492531,86.619,86.583,1.95087968]
[1772610331006,1.83848957,86.61,86.585,1.95087968]
[1772610331314,1.83848957,86.61,86.563,51.9]
[1772610331315,0.17212696,86.599,86.569,1.95087968]
[1772610331519,1.83848957,86.6,86.569,1.95087968]
[1772610332809,1.83848957,86.6,86.571,1.95087968]
[1772610333132,11.54747745,86.599,86.571,1.95087968]
[1772610333311,11.54670393,86.605,86.573,1.95087968]
[1772610333505,1.83848957,86.61,86.572,11.55107887]
[1772610333506,11.54612669,86.61,86.581,1.95087968]
[1772610334323,13.38461626,86.61,86.581,1.95087968]
[1772610334820,1.83848957,86.6,86.581,1.95087968]
[1772610335027,1.83848957,86.59,86.552,1.95087968]
[1772610335206,1.83848957,86.59,86.561,1.95087968]
[1772610337223,1.83848957,86.59,86.563,1.95087968]
[1772610337436,13.38722567,86.59,86.563,1.95087968]
[1772610338506,1.83848957,86.6,86.571,1.95087968]
[1772610338736,1.83848957,86.62,86.581,1.95087968]
[1772610338907,1.83848957,86.62,86.591,1.95087968]
[1772610339107,11.54481118,86.619,86.591,1.95087968]
[1772610339709,11.54254582,86.636,86.593,1.95087968]
[1772610339909,2.05943565,86.64,86.601,1.95087968]
[1772610340110,1.83848957,86.64,86.611,1.95087968]
[1772610340428,1.83848957,86.67,86.592,40.41943827]
[1772610340429,11.540015,86.655,86.621,1.95087968]
[1772610340723,11.53933423,86.661,86.631,1.95087968]
[1772610341331,11.53933423,86.661,86.633,1.95087968]
[1772610341818,1.83848957,86.66,86.633,1.95087968]
[1772610342014,11.53933423,86.661,86.633,1.95087968]
[1772610342323,1.83848957,86.67,86.641,1.95087968]
[1772610343006,11.53735217,86.675,86.641,1.95087968]
[1772610343426,1.83848957,86.67,86.641,1.95087968]
[1772610344634,1.83848957,86.65,86.626,1.95087968]
[1772610345530,1.83848957,86.65,86.621,11.54454462]
[1772610345531,1.83848957,86.65,86.628,1.95087968]
[1772610346242,13.63006323,86.65,86.611,1.95087968]
[1772610347337,1.83848957,86.65,86.621,1.95087968]
[1772610348535,1.83848957,86.64,86.621,1.95087968]
[1772610348721,1.83848957,86.64,86.612,1.97845367]
[1772610349344,1.83848957,86.64,86.614,1.97845367]
[1772610349528,13.38057791,86.64,86.614,1.97845367]
[1772610351847,11.54208834,86.64,86.614,1.97845367]
[1772610352034,57.69231164,86.667,86.616,1.97845367]
[1772610352035,11.54118435,86.647,86.616,1.97845367]
[1772610352441,1.83848957,86.65,86.616,1.97845367]
[1772610352646,1.83848957,86.66,86.631,1.97845367]
[1772610352947,0.28748193,86.668,86.631,1.97845367]
[1772610353333,0.28748193,86.659,86.626,1.97845367]
[1772610353531,1.83848957,86.65,86.621,1.97845367]
[1772610353727,2.13032489,86.66,86.621,1.97845367]
[1772610353932,1.83848957,86.66,86.621,1.97845367]
[1772610354148,1.83848957,86.66,86.611,0.28432314]
[1772610354149,1.83848957,86.66,86.631,1.97845367]
[1772610354647,1.84179281,86.66,86.631,1.97845367]
[1772610355338,1.84179281,86.66,86.61,1.84179281]
[1772610355339,11.834689,86.666,86.633,1.97845367]
[1772610355737,1.84179281,86.66,86.633,1.97845367]
[1772610356651,11.53948233,86.659,86.633,1.97845367]
[1772610357651,11.53948233,86.659,86.635,1.97845367]
[1772610358043,1.84179281,86.66,86.635,1.97845367]
[1772610358359,35.99342183,86.68,86.641,1.97845367]
[1772610358360,11.53815971,86.669,86.641,1.97845367]
[1772610360349,1.84179281,86.66,86.641,1.97845367]
[1772610360552,11.53681976,86.679,86.643,1.97845367]
[1772610360753,11.53681976,86.679,86.642,11.54174649]
[1772610360754,7.15164436,86.68,86.651,1.97845367]
[1772610360954,7.15164436,86.68,86.661,1.97845367]
[1772610361336,28.83497987,86.701,86.642,40.39611273]
[1772610361337,2.01108759,86.709,86.671,1.97845367]
[1772610361666,1.84179281,86.7,86.671,1.97845367]
[1772610362556,11.53373087,86.703,86.673,1.97845367]
[1772610362854,11.53373087,86.703,86.672,11.53775152]
[1772610362855,2.01108759,86.716,86.681,1.97845367]
[1772610363043,1.94179281,86.72,86.681,1.97845367]
[1772610363044,11.53238079,86.713,86.681,1.97845367]
[1772610363249,11.53161906,86.719,86.681,1.97845367]
[1772610363851,1.84179281,86.71,86.681,1.97845367]
[1772610364941,13.54270665,86.719,86.681,1.97845367]
[1772610364942,1.84179281,86.7,86.681,1.97845367]
[1772610365956,2.01108759,86.699,86.674,1.97845367]
[1772610366159,1.84179281,86.7,86.674,1.97845367]
[1772610366359,11.53282819,86.709,86.674,1.97845367]
[1772610368244,11.53282819,86.709,86.676,1.97845367]
[1772610368848,2.01108759,86.708,86.676,1.97845367]
[1772610369250,2.01108759,86.708,86.681,1.97845367]
[1772610370005,1.84179281,86.7,86.681,1.97845367]
[1772610370165,2.01108759,86.708,86.681,1.97845367]
[1772610370166,11.53309421,86.707,86.681,1.97845367]
[1772610370958,1.94179281,86.72,86.683,1.97845367]
[1772610371863,11.53158059,86.719,86.683,1.97845367]
[1772610372064,11.53158059,86.719,86.685,1.97845367]
[1772610372658,13.54266818,86.719,86.685,1.97845367]
[1772610374169,1.84179281,86.71,86.685,1.97845367]
[1772610375375,2.01108759,86.709,86.685,1.97845367]
[1772610375673,1.84179281,86.7,86.678,1.97845367]
[1772610376071,2.01108759,86.709,86.678,1.97845367]
[1772610376768,11.5329612,86.708,86.679,11.53681976]
[1772610376976,11.5329612,86.708,86.68,1.97845367]
[1772610377497,1.84179281,86.7,86.68,1.97845367]
[1772610378473,11.53415841,86.699,86.68,1.97845367]
[1772610380479,1.84179281,86.69,86.671,2.03165576]
[1772610380676,1.84179281,86.69,86.613,102.9]
[1772610380677,2.08069892,86.689,86.661,2.03165576]
[1772610381066,3.92249173,86.67,86.647,2.03165576]
[1772610381276,2.08069892,86.669,86.647,2.03165576]
[1772610381476,2.08069892,86.669,86.638,2.03165576]
[1772610382073,1.84179281,86.67,86.639,2.03165576]
[1772610382379,1.84179281,86.67,86.641,2.03165576]
[1772610382679,11.53815089,86.669,86.642,2.03165576]
[1772610384263,11.53815089,86.669,86.643,11.54161328]
[1772610384464,11.53815089,86.669,86.644,2.03165576]
[1772610385271,2.08069892,86.699,86.651,2.3159789]
[1772610385472,2.08069892,86.689,86.662,2.03165576]
[1772610386383,13.61632092,86.688,86.662,2.03165576]
[1772610387180,11.535622,86.688,86.664,2.03165576]
[1772610387486,13.61561474,86.694,86.664,2.03165576]
[1772610388062,11.53491582,86.694,86.664,2.03165576]
[1772610388268,11.53491582,86.694,86.66,1.84179281]
[1772610388269,11.53415841,86.699,86.666,2.03165576]
[1772610388690,1.84179281,86.69,86.666,2.03165576]
[1772610390589,11.53282819,86.709,86.681,2.03165576]
[1772610392072,13.61352711,86.709,86.681,2.03165576]
[1772610392480,2.08069892,86.708,86.681,2.03165576]
[1772610393283,2.08069892,86.707,86.681,2.03165576]
[1772610394489,11.53322722,86.706,86.681,2.03165576]
[1772610394868,2.08069892,86.705,86.681,2.03165576]
[1772610395271,1.84179281,86.7,86.671,11.53779464]
[1772610395583,1.84179281,86.7,86.672,2.03165576]
[1772610395976,1.84179281,86.7,86.647,8.51860971]
[1772610395977,2.08069892,86.689,86.661,2.03165576]
[1772610396691,11.535622,86.688,86.661,2.03165576]
[1772610397596,30.91726042,86.696,86.663,2.03165576]
[1772610397597,11.53479425,86.695,86.663,2.03165576]
[1772610397991,11.53479425,86.695,86.662,11.53908287]
[1772610397992,1.84179281,86.71,86.671,2.03165576]
[1772610398293,11.53337969,86.705,86.681,2.03165576]
[1772610398792,11.53273203,86.71,86.682,11.53642047]
[1772610399106,11.53273203,86.71,86.683,2.03165576]
[1772610399677,13.37452484,86.71,86.683,2.03165576]
[1772610399878,2.08069892,86.709,86.679,2.03165576]
[1772610400279,2.08069892,86.709,86.681,2.03165576]
[1772610400485,1.84179281,86.7,86.671,2.03165576]
[1772610400996,11.53415841,86.699,86.673,2.03165576]
[1772610401379,1.84179281,86.7,86.673,2.03165576]
[1772610401581,11.53361423,86.704,86.673,2.03165576]
[1772610402502,1.84179281,86.71,86.672,11.53775152]
[1772610402503,11.5329125,86.709,86.681,2.03165576]
[1772610403189,11.5329125,86.709,86.683,2.03165576]
[1772610403592,1.84179281,86.71,86.683,2.03165576]
[1772610403888,11.53228174,86.714,86.683,2.03165576]
[1772610404097,11.53228174,86.714,86.691,2.03165576]
[1772610405901,1.84179281,86.71,86.691,2.03165576]
[1772610406301,2.08069892,86.709,86.678,2.03165576]
[1772610406502,2.08069892,86.767,86.71,0.14216157]
[1772610406796,0.1,86.78,86.731,2.03165576]
[1772610406797,2.08069892,86.765,86.731,2.03165576]
[1772610406979,1.84179281,86.75,86.731,2.03165576]
[1772610407181,1.84179281,86.75,86.7,1.84179281]
[1772610407182,2.08069892,86.739,86.711,2.03165576]
[1772610407592,1.84179281,86.76,86.681,1.15365535]
[1772610407593,1.84179281,86.72,86.688,2.03165576]
[1772610407905,1.84179281,86.73,86.701,2.03165576]
[1772610408095,1.84179281,86.73,86.7,1.84179281]
[1772610408096,2.13985647,86.768,86.723,2.03415712]
[1772610408291,1.84179281,86.76,86.731,2.03415712]
[1772610408494,1.84179281,86.75,86.731,2.03415712]
[1772610408992,3.98164928,86.75,86.724,2.03415712]
[1772610409193,2.13985647,86.758,86.724,2.03415712]
[1772610409393,1.84179281,86.76,86.724,2.03415712]
[1772610409702,1.94179281,86.77,86.731,2.31848026]
[1772610409887,1.94179281,86.77,86.733,2.31848026]
[1772610410207,1.94179281,86.77,86.741,2.03415712]
[1772610410391,0.1,86.77,86.743,2.03415712]
[1772610411304,1.94179281,86.77,86.743,2.03415712]
[1772610411891,7.2720486,86.778,86.744,2.31848026]
[1772610412086,163.4,86.849,86.771,2.03415712]
[1772610412397,16.26767244,86.855,86.8,1.84179281]
[1772610412398,2.13985647,86.839,86.8,1.84179281]
[1772610412713,1.84179281,86.85,86.791,2.03415712]
[1772610412714,2.13985647,86.819,86.791,2.03415712]
[1772610413005,2.13985647,86.819,86.79,1.84179281]
[1772610413006,1.84179281,86.83,86.793,2.03415712]
[1772610413205,14.12781597,86.855,86.814,2.31848026]
[1772610413503,0.2663868,86.868,86.841,2.03415712]
[1772610413902,0.2663868,86.868,86.843,2.03415712]
[1772610414100,2.13985647,86.859,86.82,1.84179281]
[1772610414299,1.84179281,86.85,86.82,1.84179281]
[1772610414500,5.45648658,86.86,86.83,5.45648658]
[1772610414698,2.40624327,86.868,86.83,5.45648658]
[1772610414898,7.59634305,86.86,86.82,5.45648658]
[1772610415695,2.13985647,86.849,86.792,0.28432314]
[1772610415894,2.13985647,86.849,86.81,5.45648658]
[1772610416095,2.13985647,86.849,86.812,2.03415712]
[1772610416294,5.45648658,86.85,86.821,2.03415712]
[1772610416512,5.45716601,86.85,86.821,2.03415712]
[1772610417014,29.04590225,86.868,86.831,2.03415712]
[1772610417015,0.2663868,86.868,86.831,2.03415712]
[1772610417200,0.2663868,86.868,86.841,2.03415712]
[1772610418113,5.45716601,86.88,86.851,2.03415712]
[1772610418322,5.45716601,86.87,86.851,2.03415712]
[1772610418525,5.45716601,86.87,86.841,2.03415712]
[1772610418691,2.13985647,86.879,86.842,2.03415712]
[1772610418896,2.13985647,86.879,86.85,7.49132313]
[1772610419097,5.45716601,86.87,86.841,2.03415712]
[1772610419309,2.13985647,86.881,86.851,2.03415712]
[1772610419598,5.45716601,86.88,86.851,2.03415712]
[1772610419811,57.50953844,86.943,86.86,5.45716601]
[1772610419994,16.96475986,86.9,86.871,2.03415712]
[1772610420199,5.45716601,86.9,86.871,2.03415712]
[1772610420415,11.50665215,86.907,86.871,2.03415712]
[1772610420605,11.50665215,86.907,86.873,2.03415712]
[1772610420915,11.50665215,86.907,86.872,11.51118887]
[1772610420916,5.45716601,86.91,86.881,2.03415712]
[1772610421215,11.50628818,86.909,86.881,2.03415712]
[1772610421911,5.45716601,86.91,86.881,2.03415712]
[1772610422309,5.45716601,86.9,86.861,2.03415712]
[1772610422528,5.45716601,86.91,86.873,2.03415712]
[1772610422816,5.45716601,86.92,86.891,2.03415712]
[1772610423314,163.4,86.955,86.893,2.03415712]
[1772610423512,2.13985647,86.968,86.913,2.03415712]
[1772610423810,5.45716601,86.96,86.921,2.03415712]
[1772610424014,5.45716601,86.96,86.9,5.45716601]
[1772610424015,5.55716601,86.97,86.932,11.50324391]
[1772610424199,17.05540371,86.97,86.941,2.03415712]
[1772610424402,2.13985647,87.016,86.962,4.82477569]
[1772610424600,5.45716601,86.99,86.961,2.03415712]
[1772610424801,7.59702248,87.0,86.961,2.03415712]
[1772610425121,2.13985647,87.019,86.981,2.03415712]
[1772610425416,45.92556536,87.098,86.95,5.45716601]
[1772610425417,5.45716601,87.04,87.011,2.03415712]
[1772610425711,2.13985647,87.045,87.001,2.03415712]
[1772610425712,13.62821451,87.045,87.001,2.03415712]
[1772610425919,5.45716601,87.04,87.011,2.03415712]
[1772610426105,5.45716601,87.03,87.011,2.03415712]
[1772610426301,5.45716601,87.03,87.001,2.03415712]
[1772610426509,5.45716601,87.02,86.991,2.03415712]
[1772610426708,5.45716601,87.01,86.984,2.03415712]
[1772610426911,0.2663868,87.041,87.001,2.03415712]
[1772610427114,0.2663868,87.041,87.003,2.03415712]
[1772610427311,5.45716601,87.04,87.016,2.03415712]
[1772610427815,5.45716601,87.04,87.0,5.45716601]
[1772610428003,2.13985647,87.052,87.001,2.31848026]
[1772610428204,2.13985647,87.072,87.014,2.03415712]
[1772610428409,5.45716601,87.05,87.024,2.03415712]
[1772610428611,2.13985647,87.072,87.024,2.03415712]
[1772610428612,5.45716601,87.06,87.024,2.03415712]
[1772610428917,5.99473937,87.108,87.002,40.22896024]
[1772610428918,2.19413265,87.107,87.051,5.10909883]
[1772610429210,2.19413265,87.107,87.002,224.13277852]
[1772610429211,2.19413265,87.106,87.05,5.45716601]
[1772610429420,5.45716601,87.09,87.052,5.10909883]
[1772610429602,5.45716601,87.09,87.05,5.45716601]
[1772610429802,5.45716601,87.06,87.024,0.28432314]
[1772610430004,2.19413265,87.067,87.031,0.28432314]
[1772610430217,2.19413265,87.078,87.024,4.82477569]
[1772610430406,5.45716601,87.07,87.031,0.28432314]
[1772610430611,2.19413265,87.111,87.06,5.45716601]
[1772610430822,2.19413265,87.127,87.081,0.28432314]
[1772610431024,45.86382974,87.215,87.081,0.28432314]
[1772610431025,2.19413265,87.161,87.082,4.82477569]
[1772610431226,2.19413265,87.161,87.065,3.69383402]
[1772610431227,2.19413265,87.161,87.111,0.28432314]
[1772610431606,5.45716601,87.16,87.12,5.45716601]
[1772610431825,5.45716601,87.15,87.121,0.28432314]
[1772610432030,2.19413265,87.129,87.06,5.10909883]
[1772610432343,2.19413265,87.127,87.06,5.45716601]
[1772610432538,40.17078321,87.128,87.06,5.45716601]
[1772610432539,5.45716601,87.1,87.06,5.45716601]
[1772610432832,2.19413265,87.145,87.09,5.45716601]
[1772610432998,2.19413265,87.145,87.091,0.28432314]
[1772610432999,5.45716601,87.14,87.091,0.28432314]
[1772610433326,5.45716601,87.15,87.09,3.69383402]
[1772610433617,2.19413265,87.149,87.12,5.45716601]
[1772610433824,28.67530256,87.184,87.12,5.45716601]
[1772610433825,2.19413265,87.159,87.12,5.45716601]
[1772610434025,2.19413265,87.159,87.095,3.69383402]
[1772610434330,2.19413265,87.168,87.111,0.28432314]
[1772610434641,2.19413265,87.168,87.099,3.69383402]
[1772610434642,5.45716601,87.16,87.123,3.69383402]
[1772610434832,2.19413265,87.168,87.13,5.45716601]
[1772610435020,2.19413265,87.167,87.13,5.45716601]
[1772610435336,2.19413265,87.149,87.101,0.28432314]
[1772610435660,5.45716601,87.16,87.121,0.28432314]
[1772610435814,2.19413265,87.167,87.111,0.28432314]
[1772610436137,5.45716601,87.15,87.111,0.28432314]
[1772610436508,2.19413265,87.129,87.102,0.34]
[1772610436714,5.45716601,87.12,87.091,0.34]
[1772610436908,5.45716601,87.15,87.051,11.48751881]
[1772610436909,2.19413265,87.109,87.07,5.45716601]
[1772610437104,5.45716601,87.11,87.051,11.48751881]
[1772610437105,7.65129866,87.12,87.051,40.20631583]
[1772610437308,97.52185592,87.16,87.08,5.45716601]
[1772610437513,97.52185592,87.16,87.051,40.20631583]
[1772610437514,2.19413265,87.175,87.091,0.02110516]
[1772610437714,2.19413265,87.175,87.088,0.02110516]
[1772610437715,2.19413265,87.149,87.088,0.02110516]
[1772610437926,2.19413265,87.149,87.056,8.51860971]
[1772610437927,2.19413265,87.149,87.11,5.45716601]
[1772610438130,5.45716601,87.14,87.101,0.02110516]
[1772610438527,2.19413265,87.119,87.065,0.08622811]
[1772610438707,2.19413265,87.109,87.07,5.45716601]
[1772610438907,5.45716601,87.11,87.071,0.08622811]
[1772610439114,2.19413265,87.109,87.07,5.45716601]
[1772610439413,2.19413265,87.089,87.05,5.45716601]
[1772610439613,2.19413265,87.089,86.952,46.00210669]
[1772610439614,2.19413265,87.059,87.003,0.11822966]
[1772610439824,2.19413265,87.059,87.02,5.45716601]
[1772610440026,5.45716601,87.1,86.985,0.11822966]
[1772610440027,2.19413265,87.029,86.985,0.11822966]
[1772610440331,3.69383402,87.086,87.01,5.45716601]
[1772610440332,2.24434445,87.037,87.01,5.45716601]
[1772610440832,2.24434445,87.059,87.03,5.45716601]
[1772610441128,2.24434445,87.069,87.03,5.45716601]
[1772610441322,2.24434445,87.059,87.02,5.45716601]
[1772610441934,2.24434445,87.059,87.03,5.45716601]
[1772610442312,57.40052731,87.108,86.983,4.82477569]
[1772610442313,2.24434445,87.197,87.083,7.70151046]
[1772610442520,2.24434445,87.197,87.05,32.74299606]
[1772610442521,2.24434445,87.197,87.14,5.45716601]
[1772610442738,2.24434445,87.169,87.13,5.45716601]
[1772610443034,5.45716601,87.17,87.141,0.24260216]
[1772610443221,5.45716601,87.2,87.13,5.45716601]
[1772610443222,2.24434445,87.169,87.13,5.45716601]
[1772610443415,2.24434445,87.169,87.121,5.10909883]
[1772610443416,5.45716601,87.18,87.14,5.45716601]
[1772610443621,2.24434445,87.182,87.14,5.45716601]
[1772610443820,5.45716601,87.18,87.14,5.45716601]
[1772610444030,2.24434445,87.159,87.111,0.28432314]
[1772610444230,2.24434445,87.17,87.13,5.45716601]
[1772610444429,2.24434445,87.17,87.131,0.28432314]
[1772610444633,2.24434445,87.197,87.151,0.30266611]
[1772610444935,5.45716601,87.19,87.152,0.30266611]
[1772610445137,5.45716601,87.19,87.15,5.45716601]
[1772610445434,5.45716601,87.18,87.14,0.30266611]
[1772610445741,2.24434445,87.189,87.15,5.45716601]
[1772610445944,2.24434445,87.189,87.16,5.45716601]
[1772610446118,40.39763649,87.214,87.16,5.45716601]
[1772610446319,2.24434445,87.199,87.16,5.45716601]
[1772610448049,2.24434445,87.199,87.17,4.44626331]
[1772610448250,2.24434445,87.199,87.147,3.69383402]
[1772610448541,5.45716601,87.21,87.17,5.45716601]
[1772610448720,11.73250702,87.214,87.16,5.45716601]
[1772610448721,2.37481175,87.189,87.16,5.45716601]
[1772610448929,2.37481175,87.189,87.131,4.82477569]
[1772610448930,2.37481175,87.179,87.14,5.45716601]
[1772610449648,97.72787473,87.214,87.13,5.45716601]
[1772610449649,2.37481175,87.169,87.13,5.45716601]
[1772610449831,2.37481175,87.169,87.14,5.45716601]
[1772610450028,2.37481175,87.169,87.13,5.45716601]
[1772610450223,5.45716601,87.17,87.13,5.45716601]
[1772610450224,2.37481175,87.167,87.13,5.45716601]
[1772610450429,2.37481175,87.167,87.14,5.45716601]
[1772610450843,5.45716601,87.18,87.14,5.45716601]
[1772610450844,2.37481175,87.178,87.14,5.45716601]
[1772610451145,5.45716601,87.17,87.14,5.45716601]
[1772610451340,2.37481175,87.169,87.113,0.11339321]
[1772610451545,2.37481175,87.169,87.13,5.45716601]
[1772610452250,2.37481175,87.169,87.102,0.14093219]
[1772610452597,2.37481175,87.176,87.126,0.14093219]
[1772610453048,2.37481175,87.176,87.15,5.45716601]
[1772610453744,2.37481175,87.204,87.17,5.45716601]
[1772610453940,2.37481175,87.209,87.159,0.19530814]
[1772610454139,2.37481175,87.199,87.17,5.45716601]
[1772610454340,2.37481175,87.198,87.17,5.45716601]
[1772610454552,2.37481175,87.213,87.18,5.45716601]
[1772610454753,2.37481175,87.209,87.18,5.45716601]
[1772610455433,2.37481175,87.199,87.154,0.2220286]
[1772610455635,2.37481175,87.199,87.17,5.45716601]
[1772610455938,11.4661805,87.213,87.17,5.45716601]
[1772610456143,2.37481175,87.209,87.17,5.45716601]
[1772610456357,2.37481175,87.199,87.16,5.45716601]
[1772610456562,2.37481175,87.189,87.15,5.45716601]
[1772610456749,2.37481175,87.189,87.13,5.45716601]
[1772610457064,2.37481175,87.189,87.101,5.09932799]
[1772610457065,2.37481175,87.15,87.12,5.45716601]
[1772610457265,2.37481175,87.15,87.13,5.45716601]
[1772610457444,2.37481175,87.15,87.101,0.2745523]
[1772610457445,2.37481175,87.15,87.12,5.45716601]
[1772610457762,2.37481175,87.149,87.12,5.45716601]
[1772610457969,2.37481175,87.169,87.14,5.45716601]
[1772610458146,2.37481175,87.149,87.101,0.30036256]
[1772610458349,2.37481175,87.197,87.14,5.45716601]
[1772610458548,2.37481175,87.195,87.16,5.45716601]
[1772610458771,2.37481175,87.189,87.13,40.16986111]
[1772610458950,2.37481175,87.169,87.14,5.45716601]
[1772610459148,2.37481175,87.179,87.14,5.45716601]
[1772610459351,2.37481175,87.179,87.15,5.45716601]
[1772610459657,2.37481175,87.179,87.14,5.45716601]
[1772610459868,2.37481175,87.177,87.14,16.93293301]
[1772610460041,2.37481175,87.177,87.15,5.45716601]
[1772610460366,2.37481175,87.212,87.171,0.35109712]
[1772610460565,2.37481175,87.241,87.2,5.45716601]
[1772610460768,2.37481175,87.239,87.2,5.45716601]
[1772610461071,2.37481175,87.239,87.21,5.45716601]
[1772610461448,2.37481175,87.239,87.2,5.45716601]
[1772610461769,5.45716601,87.24,87.19,5.45716601]
[1772610461770,2.37481175,87.229,87.19,5.45716601]
[1772610461946,5.45716601,87.23,87.18,3.69383402]
[1772610461947,2.37481175,87.227,87.2,5.45716601]
[1772610462151,2.37481175,87.227,87.19,5.45716601]
[1772610462443,2.37481175,87.219,87.19,5.45716601]
[1772610462864,2.37481175,87.227,87.19,5.45716601]
[1772610463048,28.65657955,87.24,87.21,5.45716601]
[1772610463049,2.37481175,87.239,87.21,5.45716601]
[1772610463252,2.37481175,87.239,87.2,5.45716601]
[1772610463566,11.46077134,87.255,87.149,0.44911636]
[1772610463567,2.37481175,87.229,87.149,0.44911636]
[1772610463752,2.37481175,87.2,87.15,0.44911636]
[1772610463945,7.83197776,87.2,87.161,11.47302119]
[1772610464145,5.45716601,87.21,87.17,5.45716601]
[1772610464567,28.65837545,87.235,87.162,0.44911636]
[1772610464568,5.45716601,87.2,87.162,0.44911636]
[1772610464769,2.37481175,87.199,87.161,11.47302119]
[1772610464970,5.45716601,87.19,87.161,11.47302119]
[1772610465468,2.37481175,87.179,87.14,5.45716601]
[1772610465763,2.37481175,87.179,87.15,5.45716601]
[1772610465967,2.37481175,87.179,87.151,11.47433764]
[1772610466351,2.37481175,87.179,87.14,5.45716601]
[1772610466550,2.37481175,87.177,87.15,5.45716601]
[1772610467161,2.37481175,87.209,87.151,5.34449057]
[1772610467368,2.37481175,87.209,87.17,5.45716601]
[1772610467548,2.37481175,87.189,87.15,5.45716601]
[1772610467750,5.45716601,87.18,87.15,5.45716601]
[1772610467949,2.37481175,87.179,87.15,5.45716601]
[1772610468152,45.84276735,87.255,87.17,5.45716601]